bitfinex/quotes_BTCUSD_20251021
["timestamp","ask_amount","ask_price","bid_price","bid_amount"]
[1761085990528,1.1833961,109330.0,109320.0,4.947e-05]
[1761085990907,0.38987567,109340.0,109320.0,4.947e-05]
[1761085991138,0.38987641,109340.0,109320.0,4.947e-05]
[1761085991364,0.80599778,109340.0,109320.0,4.947e-05]
[1761085991567,0.81496755,109350.0,109320.0,4.947e-05]
[1761085991721,0.18291967,109340.0,109320.0,4.947e-05]
[1761085991925,0.41612142,109330.0,109320.0,4.947e-05]
[1761085992091,0.59905382,109330.0,109320.0,4.947e-05]
[1761085992728,1.1818761,109330.0,109320.0,4.947e-05]
[1761085992921,0.80521382,109330.0,109320.0,4.947e-05]
[1761085993119,0.8413961,109330.0,109320.0,4.947e-05]
[1761085993605,1.21045981,109330.0,109320.0,4.947e-05]
[1761085993740,1.20027847,109330.0,109320.0,4.947e-05]
[1761085993950,0.99411847,109330.0,109320.0,4.947e-05]
[1761085994153,0.62172142,109330.0,109320.0,4.947e-05]
[1761085994370,0.59905382,109330.0,109320.0,4.947e-05]
[1761085995288,0.19204613,109350.0,109320.0,4.947e-05]
[1761085995486,0.19204613,109350.0,109320.0,0.01279196]
[1761085995487,0.39724613,109350.0,109320.0,0.01279196]
[1761085995786,0.39724613,109350.0,109320.0,0.19573863]
[1761085995999,0.18291576,109340.0,109320.0,4.947e-05]
[1761085996197,0.81336755,109350.0,109320.0,0.18299625]
[1761085996429,0.81336755,109350.0,109320.0,0.18299804]
[1761085996652,0.2052,109350.0,109320.0,0.2104404]
[1761085996883,0.18291769,109340.0,109320.0,0.01834438]
[1761085997099,0.59903911,109340.0,109320.0,0.01834438]
[1761085997302,0.59903765,109340.0,109320.0,4.947e-05]
[1761085997516,0.18293241,109330.0,109300.0,0.1924773]
[1761085997766,0.60818343,109340.0,109310.0,0.18296587]
[1761085997972,0.18293359,109330.0,109300.0,0.28238737]
[1761085998199,0.60818343,109340.0,109320.0,0.18294807]
[1761085998421,0.00914327,109370.0,109340.0,0.18291091]
[1761085998575,0.6271038,109380.0,109350.0,0.18289767]
[1761085998778,0.63530487,109380.0,109350.0,0.18289767]
[1761085998997,0.38602555,109370.0,109340.0,0.2818757]
[1761085999175,0.20316,109370.0,109350.0,0.18289868]
[1761085999378,0.20284,109370.0,109350.0,0.18289868]
[1761085999584,0.20284,109370.0,109350.0,0.18298974]
[1761085999793,0.81101136,109380.0,109350.0,0.18298974]
[1761086000087,0.18287442,109370.0,109350.0,9.106e-05]
[1761086000410,0.83786592,109360.0,109350.0,9.106e-05]
[1761086000650,1.17786592,109360.0,109350.0,9.106e-05]
[1761086000880,1.19674338,109360.0,109350.0,9.106e-05]
[1761086001301,1.17786592,109360.0,109350.0,9.106e-05]
[1761086002232,0.18296409,109320.0,109300.0,0.00034769]
[1761086002450,0.20196,109330.0,109310.0,0.18296397]
[1761086002676,0.79576677,109340.0,109310.0,0.01829658]
[1761086002890,0.18293327,109330.0,109310.0,0.01829658]
[1761086003112,0.79576677,109340.0,109310.0,0.20126223]
[1761086003587,0.56828461,109350.0,109310.0,0.23972795]
[1761086003797,0.00914243,109380.0,109350.0,0.18289031]
[1761086004007,0.59897234,109380.0,109350.0,0.01828989]
[1761086004252,0.19203743,109400.0,109360.0,0.19202619]
[1761086004460,0.21911847,109400.0,109370.0,0.20115115]
[1761086004712,0.18283236,109390.0,109370.0,0.01828655]
[1761086004937,0.19203743,109400.0,109380.0,0.18284742]
[1761086005162,0.60858335,109390.0,109350.0,0.41295524]
[1761086005381,0.60858335,109390.0,109360.0,0.182882]
[1761086005615,0.00660963,109380.0,109360.0,0.182882]
[1761086005821,0.1894613,109380.0,109350.0,0.41283524]
[1761086006030,0.1894613,109380.0,109350.0,0.2039303]
[1761086006234,0.00660963,109380.0,109360.0,0.27269567]
[1761086006432,0.00660963,109380.0,109360.0,0.47193567]
[1761086006755,0.19860237,109380.0,109340.0,0.19206145]
[1761086006963,0.19860237,109380.0,109300.0,0.00034769]
[1761086006964,0.42526636,109350.0,109300.0,0.00034769]
[1761086007172,0.41612142,109350.0,109320.0,0.18294606]
[1761086007369,0.01575206,109380.0,109350.0,0.18288696]
[1761086007680,0.19200877,109370.0,109330.0,0.48093819]
[1761086007932,0.18289902,109350.0,109330.0,0.27275041]
[1761086008081,0.18289902,109350.0,109330.0,0.19889139]
[1761086008285,0.18946086,109380.0,109350.0,0.18289784]
[1761086008502,0.18359358,109380.0,109360.0,0.01728673]
[1761086008709,0.18359358,109380.0,109350.0,0.18289784]
[1761086008906,0.00074235,109380.0,109360.0,0.18288188]
[1761086009132,0.18359152,109380.0,109360.0,0.19945912]
[1761086009347,0.00074235,109380.0,109370.0,0.1828655]
[1761086009752,0.00074235,109380.0,109370.0,0.20115205]
[1761086009956,0.00074235,109380.0,109370.0,0.19549365]
[1761086010564,0.00122786,109380.0,109370.0,0.19549365]
[1761086010798,0.00122786,109380.0,109370.0,0.01828655]
[1761086010915,0.00048551,109380.0,109370.0,0.1828655]
[1761086011115,0.19247858,109380.0,109350.0,0.18289531]
[1761086011312,0.18286845,109370.0,109350.0,0.27271448]
[1761086011561,0.19247858,109380.0,109360.0,0.19692]
[1761086011713,0.18333484,109380.0,109360.0,0.3798004]
[1761086011935,0.18286797,109370.0,109340.0,0.18290806]
[1761086012138,0.18289055,109360.0,109340.0,0.18291552]
[1761086012344,0.19201124,109370.0,109340.0,0.37951089]
[1761086012542,0.59898747,109370.0,109340.0,0.3795073]
[1761086012748,0.62709875,109370.0,109340.0,0.3795073]
[1761086013025,0.19203826,109360.0,109330.0,0.1828941]
[1761086013205,0.01896801,109360.0,109340.0,0.39186099]
[1761086013337,0.18288229,109360.0,109340.0,0.1966]
[1761086013542,0.20188391,109360.0,109330.0,0.18292841]
[1761086013744,0.21102802,109360.0,109330.0,0.37908841]
[1761086013983,0.18289982,109350.0,109330.0,0.37908841]
[1761086014182,0.18291567,109340.0,109330.0,0.19616]
[1761086014340,0.18289982,109350.0,109320.0,0.18294671]
[1761086014555,0.20193264,109350.0,109330.0,0.19584]
[1761086014762,0.18291567,109340.0,109330.0,0.19584]
[1761086015168,0.18293443,109330.0,109320.0,0.19536]
[1761086015448,0.20198678,109330.0,109320.0,0.19545139]
[1761086015973,0.1829324,109330.0,109320.0,0.19545139]
[1761086016413,0.19206145,109340.0,109320.0,0.19545139]
[1761086016593,0.2111133,109340.0,109320.0,0.19545139]
[1761086017624,0.01905185,109340.0,109330.0,0.01829324]
[1761086017849,0.19204689,109350.0,109320.0,0.37840002]
[1761086018183,0.19204689,109350.0,109330.0,0.01829324]
[1761086018184,0.21110007,109350.0,109330.0,0.01829324]
[1761086018393,0.18291567,109340.0,109330.0,0.01829324]
[1761086018614,0.20196858,109340.0,109320.0,0.37839677]
[1761086018767,0.01905299,109340.0,109330.0,0.01603342]
[1761086018978,0.18291567,109340.0,109320.0,0.3783978]
[1761086019142,0.20196864,109340.0,109320.0,0.19545139]
[1761086019342,0.59905382,109330.0,109320.0,9.139e-05]
[1761086019546,0.61810537,109330.0,109320.0,9.139e-05]
[1761086019896,0.81106537,109330.0,109320.0,9.139e-05]
[1761086020104,0.01905155,109330.0,109320.0,9.139e-05]
[1761086020307,0.01905023,109330.0,109320.0,9.139e-05]
[1761086020513,0.1920451,109350.0,109320.0,9.139e-05]
[1761086020743,0.1829324,109330.0,109320.0,9.139e-05]
[1761086021155,0.20198254,109330.0,109320.0,9.139e-05]
[1761086021357,0.01904907,109330.0,109320.0,9.139e-05]
[1761086021564,0.1829324,109330.0,109320.0,9.139e-05]
[1761086021772,0.20198153,109330.0,109320.0,9.139e-05]
[1761086021976,0.20198146,109330.0,109320.0,9.139e-05]
[1761086022797,0.57816374,109330.0,109320.0,9.139e-05]
[1761086022998,0.20198146,109330.0,109320.0,9.139e-05]
[1761086023698,0.2235271,109350.0,109320.0,0.0183863]
[1761086023901,0.20195263,109350.0,109320.0,0.23411219]
[1761086024094,0.18291567,109340.0,109330.0,0.20928599]
[1761086024298,0.18291567,109340.0,109330.0,0.1914]
[1761086024512,0.20197192,109340.0,109330.0,0.1914]
[1761086025263,0.1829324,109330.0,109320.0,9.139e-05]
[1761086025465,0.20198865,109330.0,109320.0,9.139e-05]
[1761086026230,0.01905625,109330.0,109320.0,9.139e-05]
[1761086026454,0.20199062,109330.0,109320.0,9.139e-05]
[1761086027916,0.39215062,109330.0,109320.0,9.139e-05]
[1761086029455,1.16656281,109330.0,109320.0,9.139e-05]
[1761086029659,1.22159054,109330.0,109320.0,9.139e-05]
[1761086030385,1.22159054,109330.0,109210.0,0.0002]
[1761086030386,0.19223169,109250.0,109210.0,0.0002]
[1761086030744,0.75496325,109300.0,109250.0,0.19221673]
[1761086030941,0.18301627,109280.0,109250.0,0.41902194]
[1761086031149,0.19215269,109290.0,109260.0,0.20135033]
[1761086031320,0.18301643,109280.0,109260.0,0.01830496]
[1761086031515,0.19215269,109290.0,109260.0,0.25406721]
[1761086031755,0.19215269,109290.0,109270.0,0.01405649]
[1761086031973,0.19215269,109290.0,109270.0,0.01414794]
[1761086032207,0.52302664,109310.0,109270.0,0.19226243]
[1761086032437,0.1921946,109320.0,109290.0,0.18299915]
[1761086032629,0.18296625,109310.0,109290.0,0.20129825]
[1761086032834,0.1921946,109320.0,109290.0,0.18299832]
[1761086033007,0.18297498,109310.0,109280.0,0.3798467]
[1761086033172,0.18298271,109300.0,109280.0,0.37069232]
[1761086033375,0.1921329,109300.0,109270.0,9.145e-05]
[1761086033576,0.18299935,109290.0,109280.0,0.18704]
[1761086033775,0.19212327,109310.0,109280.0,0.37004952]
[1761086034011,0.18298326,109300.0,109280.0,0.18704]
[1761086034432,0.18298326,109300.0,109280.0,0.18301545]
[1761086034607,0.19212327,109310.0,109290.0,0.18672]
[1761086034805,0.19212327,109310.0,109290.0,0.36955929]
[1761086035359,0.34,109330.0,109290.0,0.45936545]
[1761086035521,0.46163365,109340.0,109310.0,0.18296074]
[1761086035522,0.18291686,109340.0,109310.0,0.18296074]
[1761086035775,0.18293304,109330.0,109310.0,0.1862]
[1761086035946,0.21591014,109350.0,109320.0,0.20123379]
[1761086036127,0.01904804,109350.0,109340.0,0.18291567]
[1761086036344,0.20193105,109360.0,109340.0,0.01829156]
[1761086036544,0.04285987,109360.0,109340.0,0.20120719]
[1761086036728,0.18288258,109360.0,109340.0,0.01838301]
[1761086037155,0.18286891,109370.0,109350.0,0.1856]
[1761086037526,0.21019768,109370.0,109350.0,0.1856]
[1761086037730,0.21019768,109370.0,109350.0,0.36849856]
[1761086037731,0.20192411,109370.0,109350.0,0.36849856]
[1761086037845,0.20192411,109370.0,109350.0,0.1856]
[1761086038258,0.00316426,109380.0,109360.0,0.01828822]
[1761086038463,0.18601553,109380.0,109350.0,0.36849892]
[1761086038669,0.19428586,109380.0,109360.0,0.01828822]
[1761086039027,0.18289894,109350.0,109340.0,9.145e-05]
[1761086039230,0.18289894,109350.0,109340.0,0.18501145]
[1761086040015,0.18289894,109350.0,109340.0,9.145e-05]
[1761086040244,1.11760799,109350.0,109340.0,9.145e-05]
[1761086040451,1.13666435,109350.0,109340.0,9.145e-05]
[1761086040870,1.14493615,109350.0,109340.0,9.145e-05]
[1761086041101,1.13666435,109350.0,109340.0,9.145e-05]
[1761086041344,0.77053184,109350.0,109340.0,9.145e-05]
[1761086041541,0.18289894,109350.0,109340.0,9.145e-05]
[1761086041719,0.18289628,109360.0,109340.0,0.18369145]
[1761086042258,0.18289628,109360.0,109340.0,9.145e-05]
[1761086042467,0.18289894,109350.0,109340.0,9.145e-05]
[1761086043277,0.55908122,109350.0,109340.0,9.145e-05]
[1761086043420,0.52289894,109350.0,109340.0,9.145e-05]
[1761086043631,0.18289628,109360.0,109340.0,9.145e-05]
[1761086044273,0.18288222,109360.0,109350.0,0.1828]
[1761086044520,0.18601553,109380.0,109350.0,0.1828]
[1761086044521,0.00316426,109380.0,109350.0,0.1828]
[1761086044681,0.00316426,109380.0,109360.0,0.20116924]
[1761086044945,0.18601323,109380.0,109360.0,0.01828822]
[1761086045186,0.1828655,109370.0,109360.0,0.18236]
[1761086045386,0.19515566,109380.0,109360.0,0.18236]
[1761086045589,0.19515566,109380.0,109360.0,0.37387733]
[1761086045943,0.19515566,109380.0,109360.0,0.36524034]
[1761086046114,0.18601458,109380.0,109360.0,0.18236]
[1761086046320,0.00316426,109380.0,109360.0,0.36524222]
[1761086046543,0.00316426,109380.0,109370.0,0.20115205]
[1761086046877,0.00316426,109380.0,109360.0,0.36524222]
[1761086047149,0.00316426,109380.0,109370.0,0.1828655]
[1761086047430,0.00316426,109380.0,109370.0,0.19890116]
[1761086047950,0.00316426,109380.0,109370.0,0.34513451]
[1761086048225,0.00316426,109380.0,109370.0,0.32909885]
[1761086048784,0.00316426,109380.0,109360.0,0.18287734]
[1761086048982,0.15903623,109410.0,109370.0,0.3636655]
[1761086049153,0.18283333,109390.0,109370.0,0.3636655]
[1761086049315,0.18283333,109390.0,109380.0,0.18072]
[1761086049530,0.18285081,109380.0,109360.0,0.08981901]
[1761086049734,0.50817616,109410.0,109370.0,0.18286095]
[1761086049950,0.19192728,109420.0,109390.0,0.18283164]
[1761086050332,0.00825642,109420.0,109400.0,0.18028]
[1761086050478,0.025,109440.0,109430.0,0.18276523]
[1761086050624,0.02548616,109440.0,109430.0,0.30913896]
[1761086052852,0.02548616,109440.0,109430.0,0.27258424]
[1761086053592,0.0254,109460.0,109450.0,0.18273184]
[1761086053750,0.0254,109460.0,109450.0,0.4528823]
[1761086054606,0.0004,109490.0,109450.0,0.7928823]
[1761086054841,0.0004,109490.0,109480.0,0.18268176]
[1761086055048,0.0004,109490.0,109480.0,0.27250077]
[1761086055257,0.18268418,109480.0,109450.0,0.18282329]
[1761086055393,0.18268348,109480.0,109450.0,0.28177889]
[1761086055595,0.1796,109470.0,109450.0,9.145e-05]
[1761086055819,0.18270466,109470.0,109450.0,9.145e-05]
[1761086056030,0.25219565,109490.0,109450.0,9.145e-05]
[1761086056031,0.37164154,109490.0,109450.0,0.09904705]
[1761086056229,0.18269845,109470.0,109460.0,0.01178662]
[1761086056435,0.19181597,109480.0,109450.0,9.145e-05]
[1761086056609,0.19181597,109480.0,109450.0,0.36214097]
[1761086056833,0.19181597,109480.0,109460.0,0.01775848]
[1761086057176,0.18269845,109470.0,109450.0,0.17941145]
[1761086057589,0.18271514,109460.0,109450.0,9.145e-05]
[1761086058006,0.18271514,109460.0,109450.0,0.17869145]
[1761086058206,0.18271514,109460.0,109450.0,9.145e-05]
[1761086058588,0.36123514,109460.0,109450.0,9.145e-05]
[1761086058832,1.07564191,109460.0,109450.0,9.145e-05]
[1761086059230,0.73741742,109460.0,109450.0,9.145e-05]
[1761086059468,1.13072516,109460.0,109450.0,9.145e-05]
[1761086060650,1.15731342,109460.0,109450.0,9.145e-05]
[1761086060821,1.18906252,109460.0,109450.0,9.145e-05]
[1761086061090,1.2564247,109460.0,109450.0,9.145e-05]
[1761086061272,1.28171015,109460.0,109450.0,9.145e-05]
[1761086061559,0.18281535,109400.0,109380.0,0.00847303]
[1761086061780,0.36011206,109390.0,109380.0,0.00048616]
[1761086062216,0.19195528,109410.0,109380.0,0.00048616]
[1761086062217,0.18281535,109420.0,109390.0,0.18283206]
[1761086062423,0.1768,109420.0,109400.0,0.29091529]
[1761086062629,0.18279892,109410.0,109380.0,0.18333176]
[1761086062854,0.17684,109400.0,109380.0,0.09030517]
[1761086062971,0.35965616,109400.0,109380.0,0.27315166]
[1761086063375,0.17684,109400.0,109380.0,0.31122542]
[1761086063581,0.55723883,109390.0,109380.0,0.00048616]
[1761086063781,0.93342111,109390.0,109380.0,0.00048616]
[1761086064196,0.9567158,109390.0,109380.0,0.00048616]
[1761086064596,0.9567158,109390.0,109340.0,0.20055711]
[1761086064597,0.19206566,109350.0,109340.0,0.00849659]
[1761086064797,0.19206566,109350.0,109340.0,0.00854599]
[1761086064798,0.74484794,109350.0,109340.0,0.00854599]
[1761086065159,0.74484794,109350.0,109300.0,0.18614279]
[1761086065160,0.18295945,109340.0,109300.0,0.18614279]
[1761086065272,0.17632,109330.0,109320.0,0.19209078]
[1761086065476,0.16143645,109330.0,109300.0,0.20580887]
[1761086065678,0.18295018,109320.0,109300.0,0.00330223]
[1761086065928,0.1762,109330.0,109300.0,0.01245136]
[1761086066182,0.1762,109330.0,109310.0,0.18296573]
[1761086066520,0.1762,109330.0,109310.0,0.19796685]
[1761086066723,0.19206302,109340.0,109310.0,0.19796685]
[1761086066931,0.17636,109330.0,109310.0,0.23730689]
[1761086067140,0.17636,109330.0,109310.0,0.22230577]
[1761086067380,0.19206302,109340.0,109320.0,0.01829491]
[1761086067935,0.17588,109330.0,109320.0,0.01829491]
[1761086068142,0.3588124,109330.0,109320.0,0.01829491]
[1761086068363,0.18296587,109310.0,109300.0,0.00330223]
[1761086068618,0.35868587,109310.0,109300.0,0.00330223]
[1761086069516,0.17572,109310.0,109300.0,0.18628484]
[1761086070977,0.53204389,109350.0,109310.0,0.18295819]
[1761086070978,0.18289936,109350.0,109310.0,0.18295819]
[1761086071203,0.19209324,109330.0,109300.0,0.18628405]
[1761086071412,0.35756455,109320.0,109300.0,0.00330223]
[1761086071619,0.19210487,109340.0,109310.0,0.18296109]
[1761086071824,0.35741511,109330.0,109310.0,0.20125767]
[1761086071945,0.19210487,109340.0,109310.0,0.24092679]
[1761086072152,0.17424,109330.0,109320.0,0.18294834]
[1761086072353,0.17424,109330.0,109310.0,0.22263021]
[1761086072558,0.3571724,109330.0,109310.0,0.1829641]
[1761086073374,0.19203447,109360.0,109300.0,0.22093353]
[1761086073757,0.18293753,109330.0,109310.0,0.01001999]
[1761086073989,0.19208555,109350.0,109320.0,0.18294859]
[1761086074168,0.17352,109340.0,109330.0,0.01829324]
[1761086074415,0.18293245,109330.0,109300.0,0.22093353]
[1761086074635,0.18293245,109330.0,109310.0,0.18296568]
[1761086074840,0.17348,109320.0,109310.0,0.00684449]
[1761086075038,0.35642914,109320.0,109300.0,0.02880223]
[1761086075561,0.18296587,109310.0,109300.0,0.02880223]
[1761086076207,0.21914815,109310.0,109300.0,0.02880223]
[1761086077200,0.59355492,109310.0,109300.0,0.02880223]
[1761086077673,0.55737264,109310.0,109300.0,0.02880223]
[1761086077859,0.35528587,109310.0,109300.0,0.02880223]
[1761086078006,0.76587492,109310.0,109300.0,0.02880223]
[1761086078215,0.35516587,109310.0,109300.0,0.02880223]
[1761086078823,0.35504587,109310.0,109300.0,0.02880223]
[1761086079884,0.19206145,109340.0,109300.0,0.31073739]
[1761086080136,0.1716,109330.0,109320.0,0.18294377]
[1761086080343,0.1716,109330.0,109310.0,0.19211163]
[1761086080552,0.1829324,109330.0,109320.0,0.19285356]
[1761086080702,0.1829324,109330.0,109320.0,0.18294914]
[1761086080913,0.18290515,109350.0,109320.0,0.2819156]
[1761086081069,0.18291765,109340.0,109320.0,0.08981901]
[1761086081277,0.36329009,109350.0,109330.0,0.1829324]
[1761086081489,0.17124,109350.0,109340.0,0.19369904]
[1761086082155,0.35413894,109350.0,109340.0,0.19369904]
[1761086082372,0.18289894,109350.0,109340.0,0.19911048]
[1761086082536,0.18289894,109350.0,109340.0,0.18291567]
[1761086082737,0.18289894,109350.0,109340.0,0.19653348]
[1761086082943,0.18289894,109350.0,109340.0,0.0001368]
[1761086084729,0.18289894,109350.0,109340.0,0.18305247]
[1761086084730,0.16984,109350.0,109340.0,0.18305247]
[1761086084916,0.35273894,109350.0,109340.0,0.18305247]
[1761086085138,0.35273894,109350.0,109340.0,0.01635]
[1761086085751,0.35273894,109350.0,109340.0,0.0001368]
[1761086085952,0.52289894,109350.0,109340.0,0.0001368]
[1761086086158,0.69217894,109350.0,109340.0,0.0001368]
[1761086086369,0.72836122,109350.0,109340.0,0.0001368]
[1761086086575,0.93866476,109350.0,109340.0,0.0001368]
[1761086086797,1.10790476,109350.0,109340.0,0.0001368]
[1761086087198,1.14408704,109350.0,109340.0,1e-08]
[1761086087421,0.97484704,109350.0,109340.0,1e-08]
[1761086087854,1.14372704,109350.0,109340.0,1e-08]
[1761086089006,1.14332704,109350.0,109340.0,1e-08]
[1761086089442,0.55908122,109350.0,109340.0,1e-08]
[1761086089651,0.97484704,109350.0,109340.0,1e-08]
[1761086089873,1.14312704,109350.0,109340.0,1e-08]
[1761086090187,1.14296704,109350.0,109340.0,1e-08]
[1761086091310,1.16199928,109350.0,109340.0,1e-08]
[1761086092669,1.18572449,109350.0,109340.0,1e-08]
[1761086093362,1.01317131,109350.0,109340.0,1e-08]
[1761086093564,1.04935359,109350.0,109340.0,1e-08]
[1761086094224,1.21599359,109350.0,109340.0,1e-08]
[1761086094422,1.01760449,109350.0,109340.0,1e-08]
[1761086094629,1.18404449,109350.0,109340.0,1e-08]
[1761086094872,1.16027928,109350.0,109340.0,1e-08]
[1761086095119,1.18400449,109350.0,109340.0,1e-08]
[1761086096799,1.21575359,109350.0,109340.0,1e-08]
[1761086097004,0.18304944,109270.0,109250.0,0.23060513]
[1761086097175,0.1830496,109260.0,109250.0,0.00048513]
[1761086097375,0.34864944,109270.0,109250.0,0.00048513]
[1761086097376,0.34851354,109270.0,109250.0,0.00048513]
[1761086097573,0.34851354,109270.0,109250.0,0.20185407]
[1761086097794,0.1830496,109260.0,109250.0,0.20185812]
[1761086098007,0.1830496,109260.0,109250.0,0.01879176]
[1761086098423,0.18303354,109270.0,109250.0,0.20185812]
[1761086098627,0.34823354,109270.0,109250.0,0.20185812]
[1761086099051,0.18303354,109270.0,109250.0,0.20185812]
[1761086099272,0.34803354,109270.0,109250.0,0.20185812]
[1761086099614,0.1830496,109260.0,109250.0,0.00048513]
[1761086100668,0.53219564,109280.0,109250.0,0.00048513]
[1761086100868,0.53219564,109280.0,109260.0,0.18304777]
[1761086100869,0.35668774,109280.0,109260.0,0.18304777]
[1761086101533,0.35668774,109280.0,109270.0,0.01770749]
[1761086102082,0.19216774,109280.0,109270.0,0.01770749]
[1761086102300,0.18298361,109300.0,109280.0,0.1830161]
[1761086102505,0.19211416,109310.0,109290.0,0.19677408]
[1761086102699,0.18301122,109320.0,109300.0,0.192369]
[1761086102700,0.54296901,109320.0,109300.0,0.192369]
[1761086102870,0.18296587,109310.0,109290.0,0.18299935]
[1761086103078,0.18296587,109310.0,109290.0,0.58299935]
[1761086103277,0.70692901,109320.0,109300.0,0.18298261]
[1761086103558,0.18298261,109300.0,109290.0,0.4]
[1761086103685,0.18303764,109270.0,109250.0,0.19221967]
[1761086103883,0.5430315,109280.0,109260.0,0.1830496]
[1761086104304,0.1830161,109280.0,109270.0,0.18303285]
[1761086104507,0.1830161,109280.0,109260.0,0.1830496]
[1761086104722,0.18303285,109270.0,109260.0,0.1830496]
[1761086105124,0.54304825,109270.0,109250.0,0.00048513]
[1761086105456,0.16312,109290.0,109260.0,0.18304956]
[1761086105613,0.34612035,109290.0,109260.0,0.18304956]
[1761086105816,0.18303285,109270.0,109260.0,0.18304956]
[1761086106015,0.1830496,109260.0,109250.0,0.09945745]
[1761086106215,0.18303285,109270.0,109250.0,0.18355149]
[1761086106438,0.1830496,109260.0,109250.0,0.18355149]
[1761086106637,0.1830496,109260.0,109250.0,0.00048513]
[1761086107161,0.543065,109260.0,109250.0,0.00048513]
[1761086107869,0.3456096,109260.0,109250.0,0.00048513]
[1761086108105,0.705625,109260.0,109250.0,0.00048513]
[1761086109507,1.0656404,109260.0,109250.0,0.00048513]
[1761086109682,0.705625,109260.0,109250.0,0.00048513]
[1761086109880,0.18308594,109240.0,109220.0,0.19227091]
[1761086110148,0.34119897,109230.0,109220.0,0.1832167]
[1761086110553,0.15809909,109230.0,109220.0,0.1832167]
[1761086110704,0.70482134,109240.0,109220.0,0.1832167]
[1761086111098,0.3600154,109230.0,109220.0,0.22078729]
[1761086111326,0.54311528,109230.0,109220.0,0.00010006]
[1761086111952,0.54311528,109230.0,109210.0,0.0002]
[1761086111953,0.18311664,109220.0,109210.0,0.0002]
[1761086112195,0.34431664,109220.0,109210.0,0.0003463]
[1761086112364,0.70433204,109220.0,109210.0,0.0003463]
[1761086112566,1.04433204,109220.0,109210.0,0.0003463]
[1761086112979,1.04433204,109220.0,109210.0,1e-08]
[1761086112980,1.44052972,109220.0,109210.0,1e-08]
[1761086113387,0.18322179,109160.0,109120.0,0.03698059]
[1761086113591,0.54325318,109150.0,109130.0,0.08981901]
[1761086113797,0.1832007,109170.0,109150.0,0.18323408]
[1761086114005,0.16092,109190.0,109180.0,0.18317836]
[1761086114229,0.1923666,109210.0,109190.0,0.19232529]
[1761086114230,0.3600154,109210.0,109190.0,0.19232529]
[1761086114372,0.3600154,109200.0,109180.0,0.18318306]
[1761086114574,0.3600154,109190.0,109180.0,0.18318306]
[1761086114787,0.3600154,109200.0,109190.0,0.18316695]
[1761086114993,0.54316558,109200.0,109180.0,0.18318306]
[1761086115327,0.54316558,109200.0,109180.0,0.19594441]
[1761086115552,0.18315018,109200.0,109180.0,0.19594441]
[1761086115758,0.34372695,109190.0,109180.0,0.00013069]
[1761086115925,0.70374235,109190.0,109180.0,0.00013069]
[1761086116296,0.3600154,109200.0,109180.0,0.00013069]
[1761086116500,0.5204154,109200.0,109190.0,0.18316619]
[1761086116765,0.70376614,109200.0,109180.0,0.20163246]
[1761086116887,0.70364614,109200.0,109180.0,0.18331425]
[1761086117531,0.54318235,109190.0,109180.0,0.00013069]
[1761086117710,0.3600154,109200.0,109180.0,0.20163279]
[1761086117915,0.18315025,109200.0,109180.0,0.18331442]
[1761086118158,0.34339025,109200.0,109180.0,0.18331442]
[1761086118456,0.18316695,109190.0,109180.0,0.00013069]
[1761086118802,0.70328565,109200.0,109180.0,0.18331442]
[1761086119001,0.18316695,109190.0,109180.0,0.00013069]
[1761086119203,0.18316695,109190.0,109180.0,0.00430776]
[1761086119418,0.54318235,109190.0,109180.0,0.00430776]
[1761086119616,0.70328565,109200.0,109180.0,0.18749149]
[1761086119862,0.18316695,109190.0,109180.0,0.18331442]
[1761086120122,0.18316695,109190.0,109180.0,0.00013069]
[1761086121091,0.54318235,109190.0,109180.0,0.00013069]
[1761086122312,0.18316695,109190.0,109180.0,0.00013069]
[1761086122539,0.18315025,109200.0,109180.0,0.00013069]
[1761086122737,0.34212695,109190.0,109180.0,0.18331442]
[1761086122988,0.34212695,109190.0,109180.0,0.00013069]
[1761086123218,1.08732908,109190.0,109180.0,0.00013069]
[1761086123415,1.14652164,109190.0,109180.0,1e-08]
[1761086123572,0.18323368,109160.0,109130.0,0.0089505]
[1761086123795,0.18323408,109150.0,109130.0,0.20159411]
[1761086123970,0.18325087,109140.0,109120.0,0.02201823]
[1761086124173,0.18328445,109120.0,109080.0,0.18330515]
[1761086124524,0.18330125,109110.0,109090.0,0.24861901]
[1761086124732,0.19973795,109110.0,109090.0,0.43195387]
[1761086124983,0.0164367,109110.0,109100.0,0.01073511]
[1761086125199,0.18330125,109110.0,109100.0,0.01024925]
[1761086125427,0.18344653,109110.0,109100.0,0.0183318]
[1761086125890,0.00014528,109110.0,109100.0,0.18331805]
[1761086126155,0.00014528,109110.0,109100.0,0.68839496]
[1761086126406,0.00014528,109110.0,109100.0,0.67006316]
[1761086126819,0.00014528,109110.0,109100.0,0.30918317]
[1761086127680,0.00014528,109110.0,109100.0,0.67006316]
[1761086127882,0.00014528,109110.0,109100.0,0.30918317]
[1761086128138,0.00014528,109110.0,109100.0,0.46714317]
[1761086128357,0.00014528,109110.0,109100.0,0.43109706]
[1761086128703,0.00014528,109110.0,109100.0,0.18331805]
[1761086130133,0.00014528,109110.0,109100.0,0.80962885]
[1761086130300,1e-08,109110.0,109100.0,1.13826393]
[1761086130504,1e-08,109110.0,109100.0,1.22808294]
[1761086130707,1e-08,109110.0,109100.0,0.86720295]
[1761086130934,1e-08,109110.0,109100.0,1.22808294]
[1761086132109,1e-08,109110.0,109100.0,0.86720295]
[1761086132320,1e-08,109110.0,109100.0,1.22808294]
[1761086132948,1e-08,109110.0,109100.0,1.62808294]
[1761086134881,1e-08,109110.0,109100.0,1.26720295]
[1761086135110,1e-08,109110.0,109100.0,1.62808294]
[1761086136050,0.93925168,109200.0,109100.0,1.62808294]
[1761086136051,0.20685273,109200.0,109160.0,0.00916086]
[1761086136260,0.20685273,109200.0,109190.0,0.18315367]
[1761086136261,0.0083062,109200.0,109190.0,0.18315367]
[1761086136431,0.55233829,109200.0,109170.0,0.28214841]
[1761086136629,0.18316721,109190.0,109170.0,0.34520588]
[1761086136895,0.18316721,109190.0,109180.0,0.18318373]
[1761086137392,0.54418004,109200.0,109180.0,0.18318373]
[1761086137539,0.00014795,109200.0,109190.0,0.20148364]
[1761086138963,0.00014795,109200.0,109190.0,0.18316695]
[1761086139188,0.00014795,109200.0,109190.0,0.29130265]
[1761086139390,0.00014795,109200.0,109190.0,0.27298596]
[1761086140812,0.54417812,109200.0,109180.0,0.33926373]
[1761086141128,0.54417812,109200.0,109180.0,0.42908274]
[1761086141434,0.18316695,109190.0,109170.0,0.1923294]
[1761086141593,0.54404694,109190.0,109180.0,0.18318373]
[1761086141761,0.18316695,109190.0,109180.0,0.1873608]
[1761086142193,0.54404694,109190.0,109180.0,0.1873608]
[1761086142722,0.18316695,109190.0,109180.0,0.1873608]
[1761086142922,0.62673431,109190.0,109180.0,0.00417707]
[1761086143841,0.18316695,109190.0,109180.0,0.00417707]
[1761086144220,0.78277431,109190.0,109180.0,0.00417707]
[1761086145627,0.18316695,109190.0,109180.0,0.00417707]
[1761086145845,0.18316695,109190.0,109180.0,0.1873608]
[1761086146294,0.18329813,109200.0,109180.0,0.00417707]
[1761086146418,0.18321452,109170.0,109150.0,0.19239442]
[1761086146632,0.62678188,109170.0,109150.0,0.19239442]
[1761086146860,0.18321729,109160.0,109140.0,0.156]